fUST/lending_fUST_20251001
["ID","MTS","AMOUNT","RATE_DAILY","PERIOD"]
[388676764,1759315845725,-500.0,0.00019726,2]
[388676766,1759315845734,-519.47812848,0.00019726,2]
[388676768,1759315845744,-555.03,0.00019726,2]
[388676770,1759315845754,-1056.85,0.00019726,2]
[388676772,1759315845764,-500.0,0.00019726,2]
[388676774,1759315845774,-500.0,0.00019726,2]
[388676776,1759315845784,-836.24,0.00019726,2]
[388676778,1759315845793,-654.88,0.00019726,2]
[388676780,1759315845803,-942.59,0.00019726,2]
[388676782,1759315845812,-500.0,0.00019726,2]
[388676784,1759315845822,-1012.7,0.00019726,2]
[388676786,1759315845831,-500.0,0.00019726,2]
[388676788,1759315845842,-820.77,0.00019726,2]
[388676790,1759315845851,-2661.23,0.00019726,2]
[388676792,1759315845860,-598.98,0.00019726,2]
[388676794,1759315845869,-500.0,0.00019726,2]
[388676796,1759315845878,-500.0,0.00019726,2]
[388676798,1759315845888,-500.0,0.00019726,2]
[388676800,1759315845897,-500.0,0.00019726,2]
[388676802,1759315845908,-1514.48,0.00019726,2]
[388676804,1759315845917,-2516.99,0.00019726,2]
[388676806,1759315845927,-934.51,0.00019726,2]
[388676808,1759315845936,-760.97,0.00019726,2]
[388676810,1759315845947,-1456.74,0.00019726,2]
[388676812,1759315845956,-500.0,0.00019726,2]
[388676814,1759315845967,-500.0,0.00019726,2]
[388676816,1759315845977,-500.0,0.00019726,2]
[388676818,1759315845987,-1184.51,0.00019726,2]
[388676821,1759315845997,-1000.0,0.00019726,2]
[388676822,1759315846006,-831.21,0.00019726,2]
[388676824,1759315846015,-500.0,0.00019726,2]
[388676827,1759315846025,-500.0,0.00019726,2]
[388676829,1759315846035,-500.0,0.00019726,2]
[388676831,1759315846044,-500.0,0.00019726,2]
[388676833,1759315846054,-500.0,0.00019726,2]
[388676835,1759315846063,-500.0,0.00019726,2]
[388676837,1759315846072,-500.0,0.00019726,2]
[388676839,1759315846082,-614.7888316,0.00019726,2]
[388676841,1759315846092,-500.0,0.00019726,2]
[388676843,1759315846102,-500.0,0.00019726,2]
[388676845,1759315846114,-3332.09,0.00019726,2]
[388676847,1759315846125,-500.0,0.00019726,2]
[388676849,1759315846136,-500.0,0.00019726,2]
[388676851,1759315846146,-620.7859093,0.00019726,2]
[388676853,1759315846156,-2720.68,0.00019726,2]
[388676855,1759315846167,-500.0,0.00019726,2]
[388676857,1759315846177,-727.64,0.00019726,2]
[388676859,1759315846187,-500.0,0.00019726,2]
[388676861,1759315846196,-403.59061024,0.00019726,2]
[388676863,1759315846208,-1049.88,0.00019726,2]
[388676866,1759315846218,-500.0,0.00019726,2]
[388676868,1759315846229,-500.0,0.00019726,2]
[388676870,1759315846238,-968.77,0.00019726,2]
[388676872,1759315846248,-500.0,0.00019726,2]
[388676874,1759315846257,-500.0,0.00019726,2]
[388676876,1759315846267,-500.0,0.00019726,2]
[388676878,1759315846276,-500.0,0.00019726,2]
[388676880,1759315846285,-500.0,0.00019726,2]
[388676882,1759315846295,-1394.05,0.00019726,2]
[388676884,1759315846305,-500.0,0.00019726,2]
[388676886,1759315846314,-500.0,0.00019726,2]
[388676888,1759315846325,-1106.4,0.00019726,2]
[388676890,1759315846334,-500.0,0.00019726,2]
[388676892,1759315846343,-653.38,0.00019726,2]
[388676894,1759315846353,-500.0,0.00019726,2]
[388676896,1759315846362,-549.06,0.00019726,2]
[388676898,1759315846371,-500.0,0.00019726,2]
[388676900,1759315846380,-758.9,0.00019726,2]
[388676902,1759315846389,-500.0,0.00019726,2]
[388676904,1759315846399,-5503.77,0.00019726,2]
[388676906,1759315846408,-500.0,0.00019726,2]
[388676908,1759315846417,-1250.05,0.00019726,2]
[388676910,1759315846426,-412.29413606,0.00019726,2]
[388676913,1759315846437,-500.0,0.00019726,2]
[388676916,1759315846446,-500.0,0.00019726,2]
[388676918,1759315846456,-794.95,0.00019726,2]
[388676920,1759315846466,-151.0,0.00019726,2]
[388676922,1759315846475,-500.0,0.00019726,2]
[388676924,1759315846484,-1677.42,0.00019726,2]
[388676926,1759315846494,-760.39,0.00019726,2]
[388676928,1759315846503,-1165.3,0.00019726,2]
[388676930,1759315846512,-151.0,0.00019726,2]
[388676932,1759315846522,-860.75,0.00019726,2]
[388676934,1759315846531,-831.84,0.00019726,2]
[388676936,1759315846540,-151.0,0.00019726,2]
[388676938,1759315846549,-151.0,0.00019726,2]
[388676940,1759315846559,-151.0,0.00019726,2]
[388676942,1759315846568,-1981.15,0.00019726,2]
[388676944,1759315846577,-500.0,0.00019726,2]
[388676946,1759315846587,-500.0,0.00019726,2]
[388676948,1759315846595,-314.40772844,0.00019726,2]
[388676950,1759315846605,-557.12,0.00019726,2]
[388676952,1759315846614,-725.97,0.00019726,2]
[388676954,1759315846623,-500.0,0.00019726,2]
[388676956,1759315846632,-500.0,0.00019726,2]
[388676958,1759315846641,-1121.67,0.00019726,2]
[388676960,1759315846651,-985.25,0.00019726,2]
[388676962,1759315846660,-4060.68,0.00019726,2]
[388676964,1759315846669,-1098.58,0.00019726,2]
[388676966,1759315846678,-500.0,0.00019726,2]
[388676968,1759315846687,-500.0,0.00019726,2]
[388676970,1759315846696,-705.5,0.00019726,2]
[388676972,1759315846705,-500.0,0.00019726,2]
[388676974,1759315846714,-500.0,0.00019726,2]
[388676976,1759315846725,-500.0,0.00019726,2]
[388676978,1759315846736,-2089.08,0.00019726,2]
[388676980,1759315846745,-3668.86,0.00019726,2]
[388676982,1759315846754,-769.72,0.00019726,2]
[388676984,1759315846763,-500.0,0.00019726,2]
[388676986,1759315846772,-500.0,0.00019726,2]
[388676988,1759315846782,-500.0,0.00019726,2]
[388676990,1759315846790,-500.0,0.00019726,2]
[388676992,1759315846799,-897.75,0.00019726,2]
[388676994,1759315846808,-500.0,0.00019726,2]
[388676996,1759315846817,-500.0,0.00019726,2]
[388676997,1759315846827,-3584.74,0.00019726,2]
[388676999,1759315846836,-1975.96,0.00019726,2]
[388677001,1759315846846,-590.88,0.00019726,2]
[388677003,1759315846855,-500.0,0.00019726,2]
[388677005,1759315846864,-151.0,0.00019726,2]
[388677007,1759315846873,-500.0,0.00019726,2]
[388677009,1759315846882,-500.0,0.00019726,2]
[388677011,1759315846891,-151.0,0.00019726,2]
[388677013,1759315846901,-804.88,0.00019726,2]
[388677015,1759315846910,-500.0,0.00019726,2]
[388677017,1759315846919,-151.0,0.00019726,2]
[388677019,1759315846928,-4689.62,0.00019726,2]
[388677021,1759315846938,-500.0,0.00019726,2]
[388677023,1759315846947,-1375.73,0.00019726,2]
[388677025,1759315846956,-500.0,0.00019726,2]
[388677027,1759315846965,-500.0,0.00019726,2]
[388677029,1759315846974,-963.21,0.00019726,2]
[388677031,1759315846983,-500.0,0.00019726,2]
[388677033,1759315846992,-3645.51,0.00019726,2]
[388677035,1759315847001,-721.28,0.00019726,2]
[388677037,1759315847011,-500.0,0.00019726,2]
[388677039,1759315847020,-11921.84,0.00019726,2]
[388677041,1759315847031,-1658.13,0.00019726,2]
[388677043,1759315847040,-1760.29,0.00019726,2]
[388677045,1759315847050,-337.38564332,0.00019726,2]
[388677047,1759315847060,-500.0,0.00019726,2]
[388677049,1759315847069,-500.0,0.00019726,2]
[388677051,1759315847078,-784.0,0.00019726,2]
[388677053,1759315847087,-500.0,0.00019726,2]
[388677055,1759315847096,-573.01,0.00019726,2]
[388677057,1759315847106,-1591.02,0.00019726,2]
[388677059,1759315847120,-151.0,0.00019726,2]
[388677061,1759315847135,-500.0,0.00019726,2]
[388677064,1759315847145,-2200.21,0.00019726,2]
[388677066,1759315847155,-667.46,0.00019726,2]
[388677068,1759315847166,-434.85758031,0.00019726,2]
[388677087,1759315847338,-500.0,0.00019726,2]
[388677089,1759315847364,-1728.6,0.00019726,2]
[388677092,1759315847374,-295.19536996,0.00019726,2]
[388677093,1759315847384,-1626.0,0.00019726,2]
[388677095,1759315847396,-152.468174,0.00019726,2]
[388677097,1759315847408,-500.0,0.00019726,2]
[388677099,1759315847418,-500.0,0.00019726,2]
[388677102,1759315847427,-500.0,0.00019726,2]
[388677104,1759315847437,-2097.52,0.00019726,2]
[388677106,1759315847447,-1127.42,0.00019726,2]
[388677108,1759315847456,-878.97,0.00019726,2]
[388677110,1759315847466,-1980.3,0.00019726,2]
[388677111,1759315847476,-2101.94,0.00019726,2]
[388677113,1759315847485,-500.0,0.00019726,2]
[388677115,1759315847494,-524.32,0.00019726,2]
[388677117,1759315847503,-500.0,0.00019726,2]
[388677119,1759315847511,-500.0,0.00019726,2]
[388677122,1759315847524,-500.0,0.00019726,2]
[388677124,1759315847534,-500.0,0.00019726,2]
[388677126,1759315847543,-174.180251,0.00019726,2]
[388677128,1759315847552,-500.0,0.00019726,2]
[388677130,1759315847562,-833.16,0.00019726,2]
[388677132,1759315847571,-151.0,0.00019726,2]
[388677134,1759315847580,-151.0,0.00019726,2]
[388677136,1759315847589,-1490.51,0.00019726,2]
[388677138,1759315847599,-500.0,0.00019726,2]
[388677140,1759315847609,-696.96,0.00019726,2]
[388677142,1759315847618,-2105.33,0.00019726,2]
[388677144,1759315847628,-714.98,0.00019726,2]
[388677146,1759315847637,-1359.36,0.00019726,2]
[388677148,1759315847646,-932.56,0.00019726,2]
[388677150,1759315847655,-1137.43,0.00019726,2]
[388677151,1759315847665,-152.342961,0.00019726,2]
[388677154,1759315847675,-1466.87,0.00019726,2]
[388677156,1759315847684,-500.0,0.00019726,2]
[388677158,1759315847692,-580.54,0.00019726,2]
[388677160,1759315847703,-500.0,0.00019726,2]
[388677161,1759315847712,-3194.71,0.00019726,2]
[388677164,1759315847722,-500.0,0.00019726,2]
[388677165,1759315847731,-1715.52,0.00019726,2]
[388677168,1759315847741,-151.0,0.00019726,2]
[388677170,1759315847750,-500.0,0.00019726,2]
[388677172,1759315847759,-649.55,0.00019726,2]
[388677173,1759315847769,-151.0,0.00019726,2]
[388677175,1759315847778,-641.44,0.00019726,2]
[388677176,1759315847787,-1327.01,0.00019726,2]
[388677178,1759315847796,-500.0,0.00019726,2]
[388677180,1759315847805,-1795.92,0.00019726,2]
[388677182,1759315847814,-500.0,0.00019726,2]
[388677184,1759315847824,-1087.06,0.00019726,2]
[388677186,1759315847833,-699.52,0.00019726,2]
[388677188,1759315847842,-1312.51,0.00019726,2]
[388677190,1759315847851,-151.0,0.00019726,2]
[388677192,1759315847860,-500.0,0.00019726,2]
[388677194,1759315847869,-500.0,0.00019726,2]
[388677196,1759315847879,-500.0,0.00019726,2]
[388677198,1759315847888,-4609.98,0.00019726,2]
[388677200,1759315847898,-151.0,0.00019726,2]
[388677202,1759315847907,-500.0,0.00019726,2]
[388677204,1759315847917,-735.67,0.00019726,2]
[388677206,1759315847926,-500.0,0.00019726,2]
[388677208,1759315847935,-890.3,0.00019726,2]
[388677210,1759315847945,-500.0,0.00019726,2]
[388677212,1759315847954,-768.6,0.00019726,2]
[388677214,1759315847963,-2835.31,0.00019726,2]
[388677216,1759315847972,-151.0,0.00019726,2]
[388677218,1759315847981,-500.0,0.00019726,2]
[388677220,1759315847991,-1966.18,0.00019726,2]
[388677222,1759315848000,-151.0,0.00019726,2]
[388677224,1759315848009,-151.0,0.00019726,2]
[388677226,1759315848018,-548.56,0.00019726,2]
[388677228,1759315848027,-1759.77,0.00019726,2]
[388677230,1759315848036,-1599.02,0.00019726,2]
[388677232,1759315848046,-500.0,0.00019726,2]
[388677234,1759315848055,-1419.81,0.00019726,2]
[388677236,1759315848064,-1222.97,0.00019726,2]
[388677238,1759315848073,-758.45,0.00019726,2]
[388677240,1759315848082,-856.04,0.00019726,2]
[388677242,1759315848091,-2401.64,0.00019726,2]
[388677244,1759315848101,-1085.81,0.00019726,2]
[388677246,1759315848110,-2306.73,0.00019726,2]
[388677248,1759315848125,-2110.79,0.00019726,2]
[388677249,1759315848134,-1398.24,0.00019726,2]
[388677251,1759315848143,-500.0,0.00019726,2]
[388677253,1759315848152,-2414.44,0.00019726,2]
[388677255,1759315848162,-1754.28,0.00019726,2]
[388677257,1759315848171,-687.41,0.00019726,2]
[388677258,1759315848180,-1961.75,0.00019726,2]
[388677259,1759315848191,-500.0,0.00019726,2]
[388677260,1759315848202,-500.0,0.00019726,2]
[388677261,1759315848212,-3330.02,0.00019726,2]
[388677262,1759315848221,-500.0,0.00019726,2]
[388677263,1759315848230,-500.0,0.00019726,2]
[388677264,1759315848239,-151.0,0.00019726,2]
[388677265,1759315848248,-151.0,0.00019726,2]
[388677266,1759315848256,-500.0,0.00019726,2]
[388677267,1759315848266,-151.0,0.00019726,2]
[388677268,1759315848276,-964.79,0.00019726,2]
[388677269,1759315848286,-2560.176147,0.00019726,2]
[388677270,1759315848295,-151.0,0.00019726,2]
[388677271,1759315848304,-4833.41,0.00019726,2]
[388677272,1759315848314,-1390.24430884,0.00019726,2]
[388677341,1759315849100,-1655.9,0.00019178,2]
[388677343,1759315849110,-500.0,0.00019178,2]
[388677345,1759315849124,-500.0,0.00019178,2]
[388677347,1759315849135,-1655.9,0.00019452,2]
[388677349,1759315849144,-1169.93183816,0.00019726,2]
[388677351,1759315849154,-500.0,0.00019726,2]
[388677353,1759315849163,-151.0,0.00019726,2]
[388677355,1759315849174,-2560.176147,0.00019726,2]
[388677357,1759315849185,-1072.26,0.00019726,2]
[388677359,1759315849195,-2560.176147,0.00019726,2]
[388677361,1759315849206,-1655.9,0.00019726,2]
[388677363,1759315849215,-500.0,0.00019726,2]
[388677365,1759315849225,-500.0,0.00019773,2]
[388677367,1759315849235,-500.0,0.00019773,2]
[388677370,1759315849245,-502.66302311,0.00019773,2]
[388677372,1759315849254,-500.0,0.00019773,2]
[388677374,1759315849263,-500.0,0.00019773,2]
[388677376,1759315849274,-500.0,0.00019773,2]
[388677377,1759315849283,-500.0,0.00019773,2]
[388677379,1759315849292,-500.0,0.00019773,2]
[388677381,1759315849302,-598.01499122,0.00019773,2]
[388677383,1759315849312,-500.0,0.00019773,2]
[388677385,1759315849321,-151.0,0.000198,2]
[388677387,1759315849331,-151.0,0.000198,2]
[388677389,1759315849340,-151.0,0.000198,2]
[388677391,1759315849350,-151.0,0.000198,2]
[388677393,1759315849360,-151.0,0.000198,2]
[388677395,1759315849371,-168.0,0.00019804,2]
[388677397,1759315849380,-151.0,0.000199,2]
[388677399,1759315849389,-151.0,0.000199,2]
[388677401,1759315849399,-151.0,0.000199,2]
[388677403,1759315849408,-552.23454732,0.000199,2]
[388677405,1759315849417,-151.0,0.000199,2]
[388677407,1759315849426,-500.0,0.00019973,2]
[388677409,1759315849436,-500.0,0.00019973,2]
[388677411,1759315849445,-500.0,0.00019973,2]
[388677413,1759315849455,-500.0,0.00019973,2]
[388677415,1759315849464,-500.0,0.00019973,2]
[388677417,1759315849474,-500.0,0.00019973,2]
[388677419,1759315849484,-500.0,0.00019973,2]
[388677421,1759315849494,-500.0,0.00019973,2]
[388677423,1759315849503,-500.0,0.00019973,2]
[388677425,1759315849513,-500.0,0.00019973,2]
[388677427,1759315849523,-500.0,0.00019973,2]
[388677429,1759315849532,-500.0,0.00019973,2]
[388677431,1759315849542,-500.0,0.00019973,2]
[388677433,1759315849552,-500.0,0.00019973,2]
[388677435,1759315849562,-500.0,0.00019973,2]
[388677437,1759315849572,-501.8607107,0.00019973,2]
[388677439,1759315849582,-500.0,0.00019973,2]
[388677441,1759315849591,-28002.12389889,0.00019975,2]
[388678232,1759315982004,3070.5195678,0.00019078,2]
[388678233,1759315982029,10000.01,0.00019078,2]
[388678234,1759315982053,10000.01,0.00019078,2]
[388678235,1759315982078,4415.10873876,0.00019078,2]
[388678238,1759316097403,356.2672406,0.0001829,2]
[388678240,1759316124031,9643.7427594,0.00019078,2]
[388678241,1759316124055,10000.01,0.00019078,2]
[388678242,1759316124079,10000.01,0.00019078,2]
[388678243,1759316124103,356.2672406,0.00019078,2]
[388678244,1759316143275,808.65966565,0.00019133,2]
[388678245,1759316195534,800.0,0.00019076,2]
[388678246,1759316203506,800.0,0.00018951,2]
[388678249,1759316255510,800.0,0.00019131,2]
[388678250,1759316255609,800.0,0.00019021,2]
[388678251,1759316263294,812.28701591,0.00018922,2]
[388678252,1759316280643,4822.79607784,0.00019078,2]
[388678253,1759316280667,10000.01,0.00019078,2]
[388678254,1759316280690,9684.67382136,0.00019078,2]
[388678255,1759316323495,315.33617864,0.0001913,2]
[388678256,1759316323516,472.37680545,0.0001913,2]
[388678257,1759316437829,213.7785813,0.00018176,2]
[388678258,1759316443385,8270.85766334,0.00019078,2]
[388678259,1759316499801,1515.37375536,0.00018175,2]
[388678260,1759316499824,5244.17884914,0.00018175,2]
[388678261,1759316606011,4755.83115086,0.00019078,2]
[388678262,1759316606036,5244.17884914,0.00019078,2]
[388678263,1759316770135,10000.01,0.00019078,2]
[388678264,1759316932507,292.7300141,0.00018172,2]
[388678265,1759316934745,9707.2799859,0.00019078,2]
[388678266,1759316934769,292.7300141,0.00019078,2]
[388678277,1759317032232,-151.0,0.00019166,2]
[388678279,1759317032242,-366.32272292,0.00019168,2]
[388678281,1759317032254,-506.39367315,0.00019168,2]
[388678283,1759317032263,-1200.0,0.00019168,2]
[388678285,1759317032273,-681.32,0.00019168,3]
[388678286,1759317032283,-340.66,0.00019168,3]
[388678288,1759317032293,-170.33,0.00019168,3]
[388678290,1759317032302,-511.01,0.00019168,3]
[388678292,1759317032311,-300.0,0.00019169,2]
[388678294,1759317032321,-300.0,0.00019169,2]
[388678296,1759317032330,-300.0,0.00019169,2]
[388678298,1759317032340,-1200.0,0.0001917,2]
[388678300,1759317032349,-155.19993846,0.00019173,2]
[388678302,1759317032358,-500.0,0.00019173,2]
[388678304,1759317032367,-500.0,0.00019173,2]
[388678306,1759317032377,-245.81479375,0.00019173,2]
[388678309,1759317032386,-500.0,0.00019173,2]
[388678312,1759317032396,-412.76740778,0.00019173,2]
[388678315,1759317032405,-46252.57339126,0.00019174,2]
[388678318,1759317032414,-169.0237211,0.00019174,2]
[388678321,1759317032423,-279.49933749,0.00019177,2]
[388678324,1759317032432,-500.0,0.00019178,2]
[388678326,1759317032442,-225.31730289,0.00019178,2]
[388678328,1759317032454,-226.28852086,0.00019178,2]
[388678329,1759317032466,-500.0,0.00019178,2]
[388678330,1759317032475,-480.0,0.00019178,2]
[388678331,1759317032485,-1043.81,0.00019178,2]
[388678333,1759317032495,-680.43,0.00019178,2]
[388678335,1759317032505,-500.0,0.00019178,2]
[388678337,1759317032515,-500.0,0.00019178,2]
[388678338,1759317032524,-599.69,0.00019178,2]
[388678341,1759317032538,-500.0,0.00019178,2]
[388678342,1759317032547,-500.0,0.00019178,2]
[388678344,1759317032557,-340.25521046,0.00019178,2]
[388678346,1759317032566,-500.0,0.00019178,2]
[388678348,1759317032575,-1000.0,0.00019178,2]
[388678350,1759317032584,-500.0,0.00019178,2]
[388678352,1759317032594,-500.0,0.00019178,2]
[388678354,1759317032603,-500.0,0.00019178,2]
[388678356,1759317032612,-1029.29,0.00019178,2]
[388678358,1759317032621,-1029.29,0.00019178,2]
[388678360,1759317032630,-1029.29,0.00019178,2]
[388678362,1759317032640,-1029.29,0.00019178,2]
[388678364,1759317032649,-1029.29,0.00019178,2]
[388678366,1759317032658,-1029.29,0.00019178,2]
[388678368,1759317032667,-1029.29,0.00019178,2]
[388678370,1759317032677,-1029.29,0.00019178,2]
[388678372,1759317032686,-1029.29,0.00019178,2]
[388678374,1759317032695,-1029.29,0.00019178,2]
[388678376,1759317032704,-1029.29,0.00019178,2]
[388678378,1759317032714,-1029.29,0.00019178,2]
[388678380,1759317032723,-1029.29,0.00019178,2]
[388678382,1759317032732,-1029.29,0.00019178,2]
[388678384,1759317032741,-1029.29,0.00019178,2]
[388678386,1759317032750,-1029.29,0.00019178,2]
[388678388,1759317032760,-1029.29,0.00019178,2]
[388678389,1759317032770,-454.6416581,0.00019178,2]
[388678391,1759317032779,-500.0,0.00019178,2]
[388678393,1759317032789,-500.0,0.00019178,2]
[388678395,1759317032799,-500.0,0.00019178,2]
[388678397,1759317032809,-2013.15,0.00019178,2]
[388678399,1759317032818,-500.0,0.00019178,2]
[388678402,1759317032828,-1685.89,0.00019178,2]
[388678404,1759317032838,-500.0,0.00019178,2]
[388678406,1759317032847,-500.0,0.00019178,2]
[388678408,1759317032857,-973.29,0.00019178,2]
[388678410,1759317032866,-888.35,0.00019178,2]
[388678411,1759317032875,-151.7513023,0.00019178,2]
[388678413,1759317032885,-151.5481118,0.00019178,2]
[388678415,1759317032895,-198.72650697,0.00019178,2]
[388678417,1759317032904,-151.0,0.00019178,2]
[388678419,1759317032914,-151.0,0.00019178,2]
[388678421,1759317032923,-500.0,0.00019178,2]
[388678423,1759317032932,-151.29331485,0.00019178,2]
[388678425,1759317032941,-151.10190122,0.00019178,2]
[388678427,1759317032951,-151.58443086,0.00019178,2]
[388678429,1759317032960,-500.0,0.00019178,2]
[388678431,1759317032969,-1151.0,0.00019178,2]
[388678433,1759317032978,-500.0,0.00019178,2]
[388678435,1759317032987,-507.85,0.00019178,2]
[388678437,1759317032996,-629.1,0.00019178,2]
[388678439,1759317033006,-500.0,0.00019178,2]
[388678441,1759317033016,-500.0,0.00019178,2]
[388678443,1759317033025,-524.79,0.00019178,2]
[388678445,1759317033034,-602.75,0.00019178,2]
[388678447,1759317033044,-460.0,0.00019178,2]
[388678449,1759317033054,-995.24,0.00019178,2]
[388678451,1759317033063,-500.0,0.00019178,2]
[388678453,1759317033072,-500.0,0.00019178,2]
[388678454,1759317033081,-500.0,0.00019178,2]
[388678456,1759317033090,-500.0,0.00019178,2]
[388678459,1759317033100,-423.2954103,0.00019178,2]
[388678460,1759317033109,-500.0,0.00019178,2]
[388678462,1759317033119,-1011.98,0.00019178,2]
[388678464,1759317033128,-1073.62,0.00019178,2]
[388678466,1759317033137,-500.0,0.00019178,2]
[388678468,1759317033147,-500.0,0.00019178,2]
[388678470,1759317033156,-500.0,0.00019178,2]
[388678472,1759317033166,-500.0,0.00019178,2]
[388678474,1759317033175,-500.0,0.00019178,2]
[388678476,1759317033184,-500.0,0.00019178,2]
[388678478,1759317033194,-500.0,0.00019178,2]
[388678480,1759317033203,-500.0,0.00019178,2]
[388678482,1759317033212,-500.0,0.00019178,2]
[388678484,1759317033221,-543.52,0.00019178,2]
[388678486,1759317033230,-439.04688599,0.00019178,2]
[388678487,1759317033239,-841.38,0.00019178,2]
[388678488,1759317033248,-500.0,0.00019178,2]
[388678489,1759317033258,-996.71,0.00019178,2]
[388678491,1759317033267,-500.0,0.00019178,2]
[388678493,1759317033276,-230.80881006,0.00019178,2]
[388678495,1759317033286,-500.0,0.00019178,2]
[388678497,1759317033295,-500.0,0.00019178,2]
[388678499,1759317033305,-500.0,0.00019178,2]
[388678501,1759317033314,-369.33444499,0.00019178,2]
[388678503,1759317033323,-500.0,0.00019178,2]
[388678505,1759317033332,-867.72,0.00019178,2]
[388678507,1759317033342,-995.04,0.00019178,2]
[388678509,1759317033352,-1000.0,0.00019178,2]
[388678511,1759317033361,-649.93,0.00019178,2]
[388678513,1759317033370,-500.0,0.00019178,2]
[388678515,1759317033379,-777.48,0.00019178,2]
[388678517,1759317033388,-500.0,0.00019178,2]
[388678519,1759317033398,-2460.48,0.00019178,2]
[388678521,1759317033407,-351.80716402,0.00019178,2]
[388678523,1759317033416,-269.81913984,0.00019178,2]
[388678525,1759317033425,-500.0,0.00019178,2]
[388678527,1759317033434,-500.0,0.00019178,2]
[388678529,1759317033443,-449.1727934,0.00019178,2]
[388678531,1759317033453,-500.0,0.00019178,2]
[388678533,1759317033465,-423.98728009,0.00019178,2]
[388678535,1759317033475,-500.0,0.00019178,2]
[388678537,1759317033483,-425.9045976,0.00019178,2]
[388678539,1759317033492,-2327.31,0.00019178,2]
[388678541,1759317033502,-500.0,0.00019178,2]
[388678543,1759317033511,-500.0,0.00019178,2]
[388678545,1759317033521,-1453.46,0.00019178,2]
[388678547,1759317033532,-500.0,0.00019178,2]
[388678549,1759317033542,-1480.74,0.00019178,2]
[388678551,1759317033551,-484.08200638,0.00019178,2]
[388678553,1759317033560,-500.0,0.00019178,2]
[388678555,1759317033569,-1028.71,0.00019178,2]
[388678557,1759317033579,-500.0,0.00019178,2]
[388678559,1759317033588,-500.0,0.00019178,2]
[388678561,1759317033598,-500.0,0.00019178,2]
[388678563,1759317033607,-500.0,0.00019178,2]
[388678565,1759317033616,-500.0,0.00019178,2]
[388678567,1759317033625,-1189.04,0.00019178,2]
[388678569,1759317033634,-500.0,0.00019178,2]
[388678571,1759317033643,-500.0,0.00019178,2]
[388678573,1759317033652,-500.0,0.00019178,2]
[388678575,1759317033662,-500.0,0.00019178,2]
[388678577,1759317033671,-500.0,0.00019178,2]
[388678579,1759317033680,-500.0,0.00019178,2]
[388678581,1759317033690,-455.17054848,0.00019178,2]
[388678583,1759317033699,-558.59,0.00019178,2]
[388678584,1759317033708,-442.96379974,0.00019178,2]
[388678586,1759317033717,-614.9,0.00019178,2]
[388678588,1759317033727,-500.0,0.00019178,2]
[388678590,1759317033736,-262.33673221,0.00019178,2]
[388678592,1759317033745,-500.0,0.00019178,2]
[388678594,1759317033755,-500.0,0.00019178,2]
[388678596,1759317033764,-804.99,0.00019178,2]
[388678598,1759317033772,-500.0,0.00019178,2]
[388678600,1759317033782,-500.0,0.00019178,2]
[388678602,1759317033792,-500.0,0.00019178,2]